bitfinex/quotes_BTCUSD_20250714
["timestamp","ask_amount","ask_price","bid_price","bid_amount"]
[1752533354739,0.97842492,120130.0,120120.0,0.002]
[1752533355347,0.99352492,120130.0,120120.0,0.002]
[1752533355751,0.86672492,120130.0,120120.0,0.002]
[1752533355923,0.99352492,120130.0,120120.0,0.002]
[1752533356119,0.86672492,120130.0,120120.0,0.002]
[1752533356325,0.99352492,120130.0,120120.0,0.002]
[1752533357786,0.86672492,120130.0,120120.0,0.002]
[1752533357993,0.99348492,120130.0,120120.0,0.002]
[1752533360941,0.86672492,120130.0,120120.0,0.002]
[1752533361152,0.99348492,120130.0,120120.0,0.002]
[1752533365275,0.60223758,120130.0,120120.0,0.002]
[1752533365571,0.38899758,120130.0,120120.0,0.01989]
[1752533365803,0.38899758,120130.0,120120.0,0.00399]
[1752533366240,0.38899758,120130.0,120120.0,0.17049016]
[1752533366945,0.63838492,120130.0,120120.0,0.17881516]
[1752533367176,0.63838492,120130.0,120120.0,0.00399]
[1752533367436,0.63838492,120130.0,120120.0,0.002]
[1752533368037,0.51162492,120130.0,120120.0,0.002]
[1752533368199,0.63838492,120130.0,120120.0,0.002]
[1752533369443,0.63838492,120130.0,120120.0,0.16850016]
[1752533369669,0.63838492,120130.0,120120.0,0.17682516]
[1752533370347,0.57452143,120130.0,120120.0,0.17682516]
[1752533370902,0.70128143,120130.0,120120.0,0.17682516]
[1752533371073,0.57452143,120130.0,120120.0,0.17682516]
[1752533371306,0.70128143,120130.0,120120.0,0.17682516]
[1752533371886,0.70128143,120130.0,120120.0,0.010325]
[1752533372829,0.57452143,120130.0,120120.0,0.17682516]
[1752533373116,0.70128143,120130.0,120120.0,0.17682516]
[1752533373715,0.70128143,120130.0,120120.0,0.002]
[1752533373926,0.57452143,120130.0,120120.0,0.002]
[1752533374357,0.70128143,120130.0,120120.0,0.002]
[1752533374558,0.57452143,120130.0,120120.0,0.002]
[1752533374696,0.70128143,120130.0,120120.0,0.002]
[1752533374887,0.57452143,120130.0,120120.0,0.002]
[1752533375098,0.70128143,120130.0,120120.0,0.002]
[1752533375301,0.57452143,120130.0,120120.0,0.002]
[1752533375523,0.70128143,120130.0,120120.0,0.002]
[1752533376355,0.45189409,120130.0,120120.0,0.002]
[1752533376565,0.70128143,120130.0,120120.0,0.002]
[1752533377872,0.63838492,120130.0,120120.0,0.002]
[1752533378408,0.51162492,120130.0,120120.0,0.002]
[1752533378611,0.63834492,120130.0,120120.0,0.002]
[1752533378800,0.51162492,120130.0,120120.0,0.002]
[1752533379139,0.63834492,120130.0,120120.0,0.002]
[1752533380618,0.64996496,120130.0,120120.0,0.002]
[1752533382446,0.63834492,120130.0,120120.0,0.002]
[1752533384383,0.65454492,120130.0,120120.0,0.002]
[1752533392047,0.40515758,120130.0,120120.0,0.002]
[1752533392284,0.63834492,120130.0,120120.0,0.002]
[1752533400092,0.08234711,120130.0,120120.0,0.69422902]
[1752533400296,0.01764759,120130.0,120120.0,0.72805902]
[1752533400503,0.14432759,120130.0,120120.0,0.72805902]
[1752533400718,0.32746202,120130.0,120120.0,0.70308484]
[1752533400924,0.16097572,120130.0,120120.0,0.47867168]
[1752533401123,0.19245874,120130.0,120120.0,0.03781]
[1752533401326,0.31081478,120130.0,120120.0,0.28416734]
[1752533401538,0.31081478,120130.0,120120.0,0.03478]
[1752533401750,0.39409524,120130.0,120120.0,0.002]
[1752533402037,0.72482969,120130.0,120120.0,0.002]
[1752533402455,0.61434969,120130.0,120120.0,0.002]
[1752533402660,0.94524815,120130.0,120120.0,0.002]
[1752533402866,1.51188815,120130.0,120120.0,0.002]
[1752533403080,1.21920353,120130.0,120120.0,0.002]
[1752533403310,1.82865359,120130.0,120120.0,0.002]
[1752533403512,1.36920353,120130.0,120120.0,1e-08]
[1752533403782,1.49488353,120130.0,120120.0,1e-08]
[1752533404249,1.43017241,120130.0,120120.0,1e-08]
[1752533404673,1.30349241,120130.0,120120.0,1e-08]
[1752533404940,1.65859748,120130.0,120120.0,1e-08]
[1752533405172,1.78527748,120130.0,120120.0,1e-08]
[1752533405396,1.03683499,120110.0,120100.0,1e-08]
[1752533405613,1.31606029,120110.0,120100.0,1e-08]
[1752533405836,1.36963556,120090.0,120080.0,1e-08]
[1752533406095,1.89394352,120090.0,120080.0,1e-08]
[1752533406518,0.88799601,120070.0,120060.0,1e-08]
[1752533406720,1.07136312,120070.0,120060.0,0.00050991]
[1752533406934,0.76423134,120070.0,120060.0,0.00050991]
[1752533407168,1.16927312,120070.0,120060.0,0.00050991]
[1752533407390,1.18427312,120070.0,120060.0,0.00050991]
[1752533407619,1.20087312,120070.0,120060.0,0.00050991]
[1752533407818,1.20287312,120070.0,120060.0,0.00050991]
[1752533408024,1.20287312,120070.0,120050.0,0.0004]
[1752533408025,0.53928246,120060.0,120050.0,0.0004]
[1752533408236,1.06587957,120060.0,120050.0,1e-08]
[1752533408899,1.19255957,120060.0,120050.0,1e-08]
[1752533409773,0.72478244,120060.0,120050.0,1e-08]
[1752533409948,0.85146244,120060.0,120050.0,1e-08]
[1752533410143,1.1692325,120060.0,120050.0,1e-08]
[1752533410343,1.19374696,120060.0,120050.0,1e-08]
[1752533410544,1.14589048,120060.0,120050.0,1e-08]
[1752533410831,0.4995414,120060.0,120050.0,0.00198001]
[1752533411064,0.3728214,120060.0,120050.0,0.00198001]
[1752533411378,0.5048314,120060.0,120050.0,0.00198001]
[1752533411561,0.3781114,120060.0,120050.0,0.00198001]
[1752533411797,0.71088146,120060.0,120050.0,0.00198001]
[1752533411982,0.83760146,120060.0,120050.0,0.00198001]
[1752533412193,0.9189188,120060.0,120050.0,0.00198001]
[1752533412840,0.9189188,120060.0,120050.0,1e-08]
[1752533413048,0.8241988,120060.0,120050.0,1e-08]
[1752533413222,0.9509188,120060.0,120050.0,1e-08]
[1752533413634,0.8241988,120060.0,120050.0,1e-08]
[1752533413845,0.9509188,120060.0,120050.0,1e-08]
[1752533415033,0.9509188,120060.0,120050.0,1e-08]
[1752533415642,0.8241988,120060.0,120050.0,1e-08]
[1752533416101,0.5048314,120060.0,120050.0,1e-08]
[1752533416332,0.83760146,120060.0,120050.0,1e-08]
[1752533416547,0.85390146,120060.0,120050.0,1e-08]
[1752533416769,0.87030146,120060.0,120050.0,1e-08]
[1752533417180,1.21030146,120060.0,120050.0,1e-08]
[1752533417381,1.2916188,120060.0,120050.0,1e-08]
[1752533421383,1.1648988,120060.0,120050.0,1e-08]
[1752533421570,1.2916188,120060.0,120050.0,1e-08]
[1752533421779,0.7191114,120060.0,120050.0,1e-08]
[1752533421951,1.17860146,120060.0,120050.0,1e-08]
[1752533422152,1.05188146,120060.0,120050.0,1e-08]
[1752533422429,1.17860146,120060.0,120050.0,0.00198001]
[1752533422879,1.17860146,120060.0,120050.0,1e-08]
[1752533423078,1.2599188,120060.0,120050.0,1e-08]
[1752533423745,1.1331988,120060.0,120050.0,0.00198001]
[1752533423991,0.9199188,120060.0,120050.0,0.00198001]
[1752533424409,0.9699188,120060.0,120050.0,0.00198001]
[1752533424835,0.9699188,120060.0,120050.0,1e-08]
[1752533425678,1.0008188,120060.0,120050.0,1e-08]
[1752533425885,0.8740988,120060.0,120050.0,1e-08]
[1752533426107,1.0008188,120060.0,120050.0,1e-08]
[1752533426533,0.8740988,120060.0,120050.0,1e-08]
[1752533426838,1.0008188,120060.0,120050.0,1e-08]
[1752533427724,0.8740988,120060.0,120050.0,1e-08]
[1752533427943,1.0008188,120060.0,120050.0,1e-08]
[1752533428986,0.99341006,120060.0,120050.0,1e-08]
[1752533430477,0.86669006,120060.0,120050.0,1e-08]
[1752533430722,0.99341006,120060.0,120050.0,1e-08]
[1752533431376,0.86669006,120060.0,120050.0,1e-08]
[1752533431778,0.99341006,120060.0,120050.0,1e-08]
[1752533432247,0.86669006,120060.0,120050.0,1e-08]
[1752533432465,1.06653006,120060.0,120050.0,1e-08]
[1752533432733,1.19325006,120060.0,120050.0,1e-08]
[1752533432944,1.54685139,120060.0,120050.0,1e-08]
[1752533433154,1.53325006,120060.0,120050.0,1e-08]
[1752533433380,1.40653006,120060.0,120050.0,1e-08]
[1752533433586,1.54686388,120060.0,120050.0,1e-08]
[1752533434002,1.54686434,120060.0,120050.0,1e-08]
[1752533434648,1.5468724,120060.0,120050.0,1e-08]
[1752533435389,1.4201524,120060.0,120050.0,1e-08]
[1752533435562,1.5468724,120060.0,120050.0,1e-08]
[1752533436185,1.4201524,120060.0,120050.0,1e-08]
[1752533436391,1.54689103,120060.0,120050.0,1e-08]
[1752533437051,1.52689103,120060.0,120050.0,1e-08]
[1752533437265,1.40850006,120060.0,120050.0,1e-08]
[1752533437470,1.53522006,120060.0,120050.0,1e-08]
[1752533439472,1.52937731,120060.0,120050.0,1e-08]
[1752533439896,1.55437731,120060.0,120050.0,1e-08]
[1752533442327,1.55437971,120060.0,120050.0,1e-08]
[1752533442627,1.00588105,120060.0,120050.0,1e-08]
[1752533442835,0.77151082,120060.0,120050.0,0.03442001]
[1752533443044,0.74651082,120060.0,120050.0,0.03442001]
[1752533443585,1.07187214,120060.0,120050.0,0.03442001]
[1752533443793,1.09687014,120060.0,120050.0,0.03442001]
[1752533444959,0.77150882,120060.0,120050.0,0.03442001]
[1752533445170,0.85282508,120060.0,120050.0,0.03442001]
[1752533445418,0.85798508,120060.0,120050.0,0.01852001]
[1752533446573,1.0566264,120060.0,120050.0,0.01852001]
[1752533446817,1.07703106,120060.0,120050.0,0.01852001]
[1752533447191,0.61199043,120060.0,120050.0,0.03731001]
[1752533447603,0.73871043,120060.0,120050.0,0.03731001]
[1752533448194,0.73771043,120060.0,120050.0,0.03731001]
[1752533449632,0.61099043,120060.0,120050.0,0.03731001]
[1752533449831,0.73767043,120060.0,120050.0,0.03731001]
[1752533450255,0.61099043,120060.0,120050.0,0.03731001]
[1752533450461,0.73767043,120060.0,120050.0,0.03731001]
[1752533450635,0.61099043,120060.0,120050.0,0.03731001]
[1752533450839,0.73767043,120060.0,120050.0,0.03731001]
[1752533451428,0.61099043,120060.0,120050.0,0.03731001]
[1752533451638,0.73767043,120060.0,120050.0,0.03731001]
[1752533452275,0.61099043,120060.0,120050.0,0.03731001]
[1752533452490,0.73767043,120060.0,120050.0,0.03731001]
[1752533453144,0.61099043,120060.0,120050.0,0.03731001]
[1752533453347,0.73767043,120060.0,120050.0,0.03731001]
[1752533453548,0.61099043,120060.0,120050.0,0.03731001]
[1752533453804,0.61099043,120060.0,120050.0,0.21223712]
[1752533454216,0.73767043,120060.0,120050.0,0.22056691]
[1752533454419,0.72934147,120060.0,120050.0,0.03731001]
[1752533456308,0.52950147,120060.0,120050.0,0.03731001]
[1752533460288,0.52950147,120060.0,120050.0,0.03432001]
[1752533460503,0.00832826,120070.0,120060.0,0.21522981]
[1752533460704,0.03331263,120070.0,120060.0,0.2286287]
[1752533460909,0.0333129,120070.0,120060.0,0.23695766]
[1752533461154,0.1516645,120070.0,120060.0,0.24528634]
[1752533461375,0.14333624,120070.0,120060.0,0.24528634]
[1752533461644,0.4995729,120080.0,120070.0,0.2064919]
[1752533461645,0.01665458,120080.0,120070.0,0.2064919]
[1752533461906,0.23300912,120080.0,120070.0,0.22314821]
[1752533462114,0.11465669,120080.0,120070.0,0.22821821]
[1752533462318,0.24133669,120080.0,120070.0,0.22821821]
[1752533462524,0.23300912,120080.0,120070.0,0.22821821]
[1752533462729,0.40789245,120080.0,120070.0,0.22821821]
[1752533462934,0.41622023,120080.0,120070.0,0.22821821]
[1752533463138,0.41622023,120080.0,120070.0,0.22921821]
[1752533463756,0.41622023,120080.0,120070.0,0.22089065]
[1752533463965,0.39956572,120080.0,120070.0,0.22089065]
[1752533464179,0.39956572,120080.0,120070.0,0.22921884]
[1752533464645,0.39123822,120080.0,120070.0,0.22921884]
[1752533464899,0.38291051,120080.0,120070.0,0.22089079]
[1752533465143,0.38291051,120080.0,120070.0,0.22921912]
[1752533468429,0.37458273,120080.0,120070.0,0.21794079]
[1752533472307,0.18012111,120090.0,120070.0,0.57055213]
[1752533472523,0.11875616,120090.0,120080.0,0.55859329]
[1752533472738,0.24553341,120090.0,120080.0,0.22770812]
[1752533472950,0.25386035,120090.0,120080.0,0.22770812]
[1752533473182,0.2372066,120090.0,120080.0,0.22770812]
[1752533473397,0.24553334,120090.0,120080.0,0.22770812]
[1752533473824,0.25386028,120090.0,120080.0,0.22770812]
[1752533474210,0.15390028,120090.0,120080.0,0.22770812]
[1752533474860,0.002,120090.0,120080.0,0.56071329]
[1752533475061,0.01032653,120090.0,120080.0,0.56071329]
[1752533475221,0.13724653,120090.0,120080.0,0.56071329]
[1752533475428,0.12892,120090.0,120080.0,0.56071329]
[1752533477180,0.18519489,120090.0,120080.0,0.21938083]
[1752533477443,0.15389987,120090.0,120080.0,0.56071329]
[1752533477647,0.16222675,120090.0,120080.0,0.56071329]
[1752533477854,0.14557313,120090.0,120080.0,0.22770812]
[1752533478059,0.13724646,120090.0,120080.0,0.22770812]
[1752533478226,0.13724646,120090.0,120080.0,0.56071329]
[1752533478446,0.15389966,120090.0,120080.0,0.56071329]
[1752533478605,0.15389966,120090.0,120080.0,0.56171329]
[1752533478954,0.15389966,120090.0,120080.0,0.56071329]
[1752533479278,0.15389966,120090.0,120080.0,0.56271329]
[1752533479718,0.16222647,120090.0,120080.0,0.56271329]
[1752533480566,0.15389966,120090.0,120080.0,0.56271329]
[1752533480780,0.16222647,120090.0,120080.0,0.56271329]
[1752533481471,0.17055335,120090.0,120080.0,0.56271329]
[1752533481673,0.16214647,120090.0,120080.0,0.56271329]
[1752533482080,0.02697966,120090.0,120080.0,0.56271329]
[1752533482297,0.1621464,120090.0,120080.0,0.22970812]
[1752533483087,0.1621464,120090.0,120080.0,0.56271329]
[1752533483565,0.15381966,120090.0,120080.0,0.56271329]
[1752533483996,0.002,120090.0,120080.0,0.56271329]
[1752533484209,0.1288,120090.0,120080.0,1.23571846]
[1752533484429,0.1288,120090.0,120080.0,0.90271329]
[1752533488658,0.1288,120090.0,120080.0,0.91104477]
[1752533491049,0.1288,120090.0,120080.0,0.5780396]
[1752533491261,0.1288,120090.0,120080.0,0.91104477]
[1752533493199,0.12872,120090.0,120080.0,0.90271329]
[1752533495441,0.002,120090.0,120080.0,0.90271329]
[1752533495649,0.1288,120090.0,120080.0,0.90271329]
[1752533498124,0.002,120090.0,120080.0,1.23571846]
[1752533498366,0.2018,120110.0,120090.0,0.53447489]
[1752533498600,0.2018,120110.0,120100.0,0.56070139]
[1752533498805,0.002,120110.0,120100.0,0.55775139]
[1752533499008,0.12896,120110.0,120100.0,0.55775139]
[1752533499656,0.12896,120110.0,120100.0,0.5663975]
[1752533500123,0.12896,120110.0,120100.0,0.5683975]
[1752533500772,0.12896,120110.0,120100.0,0.55990472]
[1752533500994,0.13728507,120110.0,120100.0,0.21129955]
[1752533501205,0.002,120110.0,120100.0,0.54430472]
[1752533501417,0.12896,120110.0,120100.0,0.54430472]
[1752533501624,0.12896,120110.0,120100.0,0.55990472]
[1752533501833,0.12896,120110.0,120100.0,0.56825152]
[1752533502074,0.12896,120110.0,120100.0,0.22689955]
[1752533502292,0.12896,120110.0,120100.0,0.55990472]
[1752533503597,0.12896,120110.0,120100.0,0.89990472]
[1752533503800,0.002,120110.0,120100.0,0.90285472]
[1752533504008,0.002,120110.0,120100.0,0.98420183]
[1752533506143,0.002,120110.0,120100.0,0.99238076]
[1752533510687,0.002,120110.0,120100.0,0.99038076]
[1752533512121,0.002,120110.0,120100.0,0.99338076]
[1752533517185,0.002,120110.0,120100.0,0.95105183]
[1752533518849,0.002,120110.0,120100.0,0.95919096]
[1752533519609,0.002,120110.0,120100.0,1.13485181]
[1752533519812,0.12872,120130.0,120120.0,0.52447951]
[1752533520015,0.12872,120130.0,120120.0,0.86657951]
[1752533521412,0.12884,120130.0,120120.0,0.86657951]
[1752533522135,0.12884,120130.0,120120.0,0.86757951]
[1752533522567,0.002,120130.0,120120.0,0.86757951]
[1752533522751,0.1288,120130.0,120120.0,0.86757951]
[1752533523183,0.002,120130.0,120120.0,0.86757951]
[1752533523363,0.1288,120130.0,120120.0,0.86757951]
[1752533525817,0.002,120130.0,120120.0,0.86757951]
[1752533526025,0.12876,120130.0,120120.0,0.86757951]
[1752533526341,0.002,120130.0,120120.0,0.86757951]
[1752533526541,0.13376,120130.0,120120.0,0.86757951]
[1752533526742,0.15016,120130.0,120120.0,0.86757951]
[1752533531518,0.5549796,120130.0,120120.0,0.18414996]
[1752533531687,0.6816596,120130.0,120120.0,0.18415009]
[1752533531890,0.67333564,120130.0,120120.0,0.17582516]
[1752533532090,0.67333564,120130.0,120120.0,0.18415009]
[1752533532712,0.67333564,120130.0,120120.0,0.17582516]
[1752533533105,0.67333564,120130.0,120120.0,0.18415009]
[1752533533283,0.67333564,120130.0,120120.0,0.19247495]
[1752533533485,0.72333564,120130.0,120120.0,0.19247495]
[1752533533901,0.59665564,120130.0,120120.0,0.19247495]
[1752533534306,0.72333564,120130.0,120120.0,0.19247495]
[1752533534897,0.39033047,120130.0,120120.0,0.19247495]
[1752533535095,0.72333564,120130.0,120120.0,0.19247495]
[1752533535618,0.59665564,120130.0,120120.0,0.19247495]
[1752533535822,0.72333564,120130.0,120120.0,0.19247495]
[1752533536944,0.72333564,120130.0,120120.0,0.20079975]
[1752533537352,0.59665564,120130.0,120120.0,0.20079975]
[1752533537564,0.72329564,120130.0,120120.0,0.20079975]
[1752533538245,0.59665564,120130.0,120120.0,0.20079975]
[1752533538462,0.72325564,120130.0,120120.0,0.20079975]
[1752533539290,0.59665564,120130.0,120120.0,0.20079975]
[1752533539505,0.72325564,120130.0,120120.0,0.20079975]
[1752533540998,0.59665564,120130.0,120120.0,0.20079975]
[1752533541202,0.72325564,120130.0,120120.0,0.20079975]
[1752533541615,0.72325564,120130.0,120120.0,0.19247495]
[1752533542032,0.71493147,120130.0,120120.0,0.19247495]
[1752533542867,0.3819263,120130.0,120120.0,0.19247495]
[1752533545093,0.66967858,120130.0,120120.0,0.001]
[1752533545327,0.75099592,120130.0,120120.0,0.001]
[1752533545542,0.87759592,120130.0,120120.0,0.001]
[1752533554530,0.21316493,120110.0,120100.0,0.17500761]
[1752533554702,0.21515493,120110.0,120100.0,0.18333393]
[1752533555071,0.34478493,120110.0,120100.0,0.18333393]
[1752533555624,0.33645958,120110.0,120100.0,0.18333393]
[1752533555876,0.33645958,120110.0,120100.0,0.18533393]
[1752533557007,0.32145958,120110.0,120100.0,0.18533393]
[1752533557207,0.32145958,120110.0,120100.0,0.19366018]
[1752533558144,0.32145958,120110.0,120100.0,0.20198636]
[1752533559250,0.32145958,120110.0,120100.0,0.19366018]
[1752533559507,0.32145958,120110.0,120100.0,0.18533393]
[1752533562991,0.32145958,120110.0,120100.0,0.19366018]
[1752533564424,0.19485958,120110.0,120100.0,0.19366018]
[1752533564757,0.31313402,120110.0,120100.0,0.00215333]
[1752533564963,0.32873402,120110.0,120100.0,0.00215333]
[1752533565351,0.32873402,120110.0,120100.0,0.16868122]
[1752533565711,0.32873402,120110.0,120100.0,0.17700761]
[1752533566226,0.32873402,120110.0,120100.0,0.00215333]
[1752533566889,0.20213402,120110.0,120100.0,0.00215333]
[1752533567103,0.32873402,120110.0,120100.0,0.00215333]
[1752533567323,0.7430863,120110.0,120100.0,0.00215333]
[1752533567493,0.82440364,120110.0,120100.0,0.00215333]
[1752533568172,0.7430863,120110.0,120100.0,0.00215333]
[1752533571644,0.41008113,120110.0,120100.0,0.00215333]
[1752533576999,0.65964234,120110.0,120100.0,0.00215333]
[1752533577261,0.28348113,120110.0,120100.0,0.00215333]
[1752533577478,0.65964234,120110.0,120100.0,0.00215333]
[1752533578838,0.67351734,120110.0,120100.0,0.00215333]
[1752533579046,0.42395613,120110.0,120100.0,0.00215333]
[1752533579253,0.67351734,120110.0,120100.0,0.00215333]
[1752533580449,0.65964234,120110.0,120100.0,0.00215333]
[1752533580658,0.40280669,120110.0,120100.0,0.17700754]
[1752533580885,0.38780669,120110.0,120100.0,0.19365983]
[1752533581104,0.38780669,120110.0,120100.0,0.44322104]
[1752533581650,0.01665091,120110.0,120100.0,0.45355701]
[1752533581866,0.15157654,120110.0,120100.0,0.48495701]
[1752533582085,0.15157654,120110.0,120100.0,0.49328291]
[1752533582290,0.02497654,120110.0,120100.0,0.49328291]
[1752533582505,0.31809056,120110.0,120100.0,0.49328291]
[1752533582644,0.19981626,120110.0,120100.0,0.49328291]
[1752533582852,0.32641626,120110.0,120100.0,0.49328291]
[1752533583061,0.32641626,120110.0,120100.0,0.57638409]
[1752533583528,0.19981626,120110.0,120100.0,0.57638409]
[1752533583729,0.32641626,120110.0,120100.0,0.57638409]
[1752533583960,0.32641626,120110.0,120100.0,0.2437217]
[1752533584374,0.19981626,120110.0,120100.0,0.2437217]
[1752533584587,0.32641626,120110.0,120100.0,0.2437217]
[1752533585505,0.19981626,120110.0,120100.0,0.2437217]
[1752533586079,0.32641626,120110.0,120100.0,0.2437217]
[1752533586733,0.19981626,120110.0,120100.0,0.2437217]
[1752533586938,0.19981626,120110.0,120100.0,0.2282217]
[1752533587184,0.32641626,120110.0,120100.0,0.2282217]
[1752533588322,0.19981626,120110.0,120100.0,0.2282217]
[1752533588555,0.32641626,120110.0,120100.0,0.2123217]
[1752533588760,0.20194626,120110.0,120100.0,0.19566983]
[1752533588969,0.31512535,120110.0,120100.0,0.16868122]
[1752533589193,0.31512535,120110.0,120100.0,0.17700761]
[1752533589763,0.31512535,120110.0,120100.0,0.18533393]
[1752533590856,0.31512535,120110.0,120100.0,0.19366018]
[1752533591251,0.33142535,120110.0,120100.0,0.17700761]
[1752533591468,0.21179972,120110.0,120100.0,0.00215333]
[1752533591699,0.68926207,120110.0,120100.0,0.00215333]
[1752533591916,0.81586207,120110.0,120100.0,0.00215333]
[1752533593056,0.48319968,120110.0,120100.0,0.00215333]
[1752533597594,0.41974683,120110.0,120100.0,0.16868122]
[1752533597809,0.40444683,120110.0,120100.0,0.18533393]
[1752533599883,0.39612113,120110.0,120100.0,0.17700761]
[1752533600621,0.39612113,120110.0,120100.0,0.18533393]
[1752533600737,0.39612113,120110.0,120100.0,0.19366018]
[1752533600962,0.37982113,120110.0,120100.0,0.20198629]
[1752533601232,0.37982113,120110.0,120100.0,0.19366018]
[1752533601433,0.37982113,120110.0,120100.0,0.20198636]
[1752533602395,0.37982113,120110.0,120100.0,0.21031247]
[1752533603108,0.37982113,120110.0,120100.0,0.44318655]
[1752533604305,0.37982113,120110.0,120100.0,0.45151266]
[1752533605046,0.37982113,120110.0,120100.0,0.44318655]
[1752533606509,0.37982113,120110.0,120100.0,0.17700761]
[1752533606824,0.6455475,120110.0,120100.0,0.01047972]
[1752533607704,0.6455475,120110.0,120100.0,0.17700761]
[1752533608422,0.39602113,120110.0,120100.0,0.17700761]
[1752533608626,0.6455475,120110.0,120100.0,0.17700761]
[1752533608894,0.39602113,120110.0,120100.0,0.17700761]
[1752533610856,0.02156,120110.0,120100.0,0.44529641]
[1752533611067,0.14325091,120110.0,120100.0,0.46932231]
[1752533611282,0.14325091,120110.0,120100.0,0.48482231]
[1752533611942,0.14325091,120110.0,120100.0,0.46932231]
[1752533612158,0.15157605,120110.0,120100.0,0.47764815]
[1752533612568,0.02497605,120110.0,120100.0,0.47764815]
[1752533612728,0.15153605,120110.0,120100.0,0.47764815]
[1752533613766,0.01665049,120110.0,120100.0,0.74367452]
[1752533613979,0.01155486,120120.0,120110.0,0.19149049]
[1752533614193,0.39938179,120120.0,120110.0,0.45962686]
[1752533614614,0.39938179,120120.0,120110.0,0.46795207]
[1752533614615,0.24120615,120120.0,120110.0,0.46795207]
[1752533614836,0.45770624,120120.0,120110.0,0.46795207]
[1752533615045,0.45770624,120120.0,120110.0,0.45145207]
[1752533615256,0.46093624,120120.0,120110.0,0.45145207]
[1752533615472,0.29443608,120120.0,120110.0,0.45145207]
[1752533616110,0.16787608,120120.0,120110.0,0.45145207]
[1752533616359,0.29443608,120120.0,120110.0,0.45145207]
[1752533616785,0.29443608,120120.0,120110.0,0.45245207]
[1752533617449,0.16787608,120120.0,120110.0,0.45245207]
[1752533617785,0.29443608,120120.0,120110.0,0.45245207]
[1752533618202,0.16787608,120120.0,120110.0,0.45245207]
[1752533618404,0.29443608,120120.0,120110.0,0.45245207]
[1752533618603,0.46926124,120120.0,120110.0,0.45245207]
[1752533618822,0.17620108,120120.0,120110.0,0.45245207]
[1752533619024,0.29120608,120120.0,120110.0,0.45245207]
[1752533619237,0.16464608,120120.0,120110.0,0.45245207]
[1752533619468,0.29120608,120120.0,120110.0,0.45245207]
[1752533619893,0.16464608,120120.0,120110.0,0.45245207]
[1752533620142,0.29120608,120120.0,120110.0,0.45245207]
[1752533620347,0.16464608,120120.0,120110.0,0.45245207]
[1752533620559,0.14799629,120120.0,120110.0,0.45245207]
[1752533620772,0.28288109,120120.0,120110.0,0.45245207]
[1752533621257,0.05832445,120120.0,120110.0,0.48275207]
[1752533621468,0.17656,120120.0,120110.0,0.48275207]
[1752533621683,0.19320904,120120.0,120110.0,0.48275207]
[1752533621898,0.21181856,120120.0,120110.0,0.45245207]
[1752533622104,0.21504856,120120.0,120110.0,0.2029257]
[1752533623505,0.21504856,120120.0,120110.0,0.45245207]
[1752533624254,0.2067237,120120.0,120110.0,0.45245207]
[1752533624457,0.2067237,120120.0,120110.0,0.2029257]
[1752533624663,0.2067237,120120.0,120110.0,0.45245207]
[1752533625792,0.0801637,120120.0,120110.0,0.45245207]
[1752533626000,0.2067237,120120.0,120110.0,0.45245207]
[1752533626325,0.07183904,120120.0,120110.0,0.45245207]
[1752533626750,0.19839904,120120.0,120110.0,0.45245207]
[1752533627272,0.20672377,120120.0,120110.0,0.45245207]
[1752533627506,0.08016377,120120.0,120110.0,0.45245207]
[1752533627740,0.18488445,120120.0,120110.0,0.45245207]
[1752533627957,0.18488445,120120.0,120110.0,0.48315207]
[1752533628168,0.19320904,120120.0,120110.0,0.48315207]
[1752533628610,0.20153377,120120.0,120110.0,0.46795207]
[1752533630745,0.20985843,120120.0,120110.0,0.45245207]
[1752533630956,0.0749737,120120.0,120110.0,0.45245207]
[1752533631193,0.2014937,120120.0,120110.0,0.45245207]
[1752533631455,0.19316904,120120.0,120110.0,0.45245207]
[1752533631889,0.05832445,120120.0,120110.0,0.45245207]
[1752533632099,0.14316897,120120.0,120110.0,0.45245207]
[1752533632529,0.15149356,120120.0,120110.0,0.45245207]
[1752533633018,0.02497356,120120.0,120110.0,0.45245207]
[1752533633243,0.15149356,120120.0,120110.0,0.45245207]
[1752533634016,0.02497356,120120.0,120110.0,0.45245207]
[1752533634205,0.15149356,120120.0,120110.0,0.45245207]
[1752533634419,0.02497356,120120.0,120110.0,0.45245207]
[1752533634637,0.15981829,120120.0,120110.0,0.45245207]
[1752533634858,0.15149356,120120.0,120110.0,0.45245207]
[1752533635628,0.03848829,120120.0,120110.0,0.45245207]
[1752533635859,0.03016356,120120.0,120110.0,0.45245207]
[1752533636045,0.15668356,120120.0,120110.0,0.45245207]
[1752533636505,0.03016356,120120.0,120110.0,0.45245207]
[1752533636715,0.15668356,120120.0,120110.0,0.45245207]
[1752533636930,0.03848829,120120.0,120110.0,0.45245207]
[1752533637175,0.16500829,120120.0,120110.0,0.45245207]
[1752533637591,0.03848822,120120.0,120110.0,0.45245207]
[1752533637776,0.16500822,120120.0,120110.0,0.45245207]
[1752533637977,0.03848822,120120.0,120110.0,0.45245207]
[1752533638193,0.16500822,120120.0,120110.0,0.45245207]
[1752533639944,0.17333302,120120.0,120110.0,0.45245207]
[1752533640441,0.04681302,120120.0,120110.0,0.45245207]
[1752533640650,0.17333302,120120.0,120110.0,0.45245207]
[1752533640961,0.04681302,120120.0,120110.0,0.45245207]
[1752533641378,0.17333302,120120.0,120110.0,0.45245207]
[1752533641668,0.04681302,120120.0,120110.0,0.45245207]
[1752533641875,0.17333302,120120.0,120110.0,0.45245207]
[1752533642078,0.18010822,120120.0,120110.0,0.45245207]
[1752533642491,0.05358822,120120.0,120110.0,0.45245207]
[1752533642715,0.03848822,120120.0,120110.0,0.45245207]
[1752533642936,0.17333302,120120.0,120110.0,0.45245207]
[1752533643148,0.16500822,120120.0,120110.0,0.45245207]
[1752533643339,0.04681302,120120.0,120110.0,0.45245207]
[1752533643471,0.03848822,120120.0,120110.0,0.45245207]
[1752533643674,0.16500822,120120.0,120110.0,0.45245207]
[1752533643871,0.03848822,120120.0,120110.0,0.45245207]
[1752533644082,0.16500822,120120.0,120110.0,0.45245207]
[1752533644282,0.16500822,120120.0,120110.0,0.2029257]
[1752533644540,0.17333295,120120.0,120110.0,0.45245207]
[1752533644882,0.03848822,120120.0,120110.0,0.45245207]
[1752533645090,0.16500822,120120.0,120110.0,0.45245207]
[1752533645501,0.33150907,120120.0,120110.0,0.43580158]
[1752533645712,0.1483589,120120.0,120110.0,0.45245221]
[1752533645930,0.15668356,120120.0,120110.0,0.45245221]
[1752533646153,0.16500836,120120.0,120110.0,0.45245221]
[1752533646522,0.16500829,120120.0,120110.0,0.45245221]
[1752533646875,0.04681315,120120.0,120110.0,0.20292584]
[1752533647092,0.18833315,120120.0,120110.0,0.45245221]
[1752533648372,0.18833309,120120.0,120110.0,0.45245221]
[1752533649528,0.18000829,120120.0,120110.0,0.45245221]
[1752533650204,0.15668356,120120.0,120110.0,0.45245221]